{"text_format":"3","workbook":"xlsx","n_sheets":7,"sheets":["SUMMARY","CLEANERS","SUPERVISORS","SAFETY OFFICER","HYGIENE CONSUMABLES","CLEANING CHEMICALS","DEEP CLEANING"],"read":"whole","date_system":"1900"}

{"sheet":"SUMMARY","index":0,"n_rows":25,"n_cols":14,"rows_kept":25,"merged":[[0,1,0,7]]}
[null,"Cleaning, Hygiene, Deep cleaning and Supply of Consumables Services to Eskom Park , Highveld and Lowveld Zone buildings "]
[{"$nulls":3},"LOWVELD",{"$nulls":7},"HIGHVELD"]
[null,"Year 1","Year 2","Year 3","Year 4","Year 5",{"$nulls":3},"Year 1","Year 2","Year 3","Year 4","Year 5"]
["CLEANERS",{"v":0,"d":"R0.00"},{"$f":"B4+(B4*3%)","v":{"v":0,"d":"R0.00"}},{"$f":"C4+(C4*3%)","v":{"v":0,"d":"R0.00"}},{"$f":"D4+(D4*3%)","v":{"v":0,"d":"R0.00"}},{"$f":"E4+(E4*3%)","v":{"v":0,"d":"R0.00"}},null,null,"CLEANERS",{"v":0,"d":"R0.00"},{"$f":"J4+(J4*3%)","v":{"v":0,"d":"R0.00"}},{"$f":"K4+(K4*3%)","v":{"v":0,"d":"R0.00"}},{"$f":"L4+(L4*3%)","v":{"v":0,"d":"R0.00"}},{"$f":"M4+(M4*3%)","v":{"v":0,"d":"R0.00"}}]
["SUPERVISORS",{"v":0,"d":"R0.00"},{"$f":"B5+(B5*5%)","v":{"v":0,"d":"R0.00"}},{"v":0,"d":"R0.00"},{"v":0,"d":"R0.00"},{"$f":"E5+(E5*5%)","v":{"v":0,"d":"R0.00"}},null,null,"SUPERVISORS",{"v":0,"d":"R0.00"},{"$f":"J5+(J5*5%)","v":{"v":0,"d":"R0.00"}},{"$f":"K5+(K5*5%)","v":{"v":0,"d":"R0.00"}},{"$f":"L5+(L5*5%)","v":{"v":0,"d":"R0.00"}},{"$f":"M5+(M5*3%)","v":{"v":0,"d":"R0.00"}}]
["SAFETY OFFICER",{"v":0,"d":"R0.00"},{"v":0,"d":"R0.00"},{"v":0,"d":"R0.00"},{"v":0,"d":"R0.00"},{"v":0,"d":"R0.00"},null,null,"SAFETY OFFICER",{"v":0,"d":"R0.00"},{"v":0,"d":"R0.00"},{"v":0,"d":"R0.00"},{"v":0,"d":"R0.00"},{"$f":"M6+(M6*5%)","v":{"v":0,"d":"R0.00"}}]
["HYGENE CONSUMABLES(Equip & Chemicals)",{"v":0,"d":"R0.00"},{"v":0,"d":"R0.00"},{"v":0,"d":"R0.00"},{"v":0,"d":"R0.00"},{"v":0,"d":"R0.00"},null,null,"HYGENE CONSUMABLES(Equip & Chemicals)",{"v":0,"d":"R0.00"},{"v":0,"d":"R0.00"},{"v":0,"d":"R0.00"},{"v":0,"d":"R0.00"},{"v":0,"d":"R0.00"}]
["CLEANING CONSUMABLES",{"v":0,"d":"R0.00"},{"v":0,"d":"R0.00"},{"v":0,"d":"R0.00"},{"v":0,"d":"R0.00"},{"v":0,"d":"R0.00"},null,null,"CLEANING CONSUMABLES",{"v":0,"d":"R0.00"},{"v":0,"d":"R0.00"},{"v":0,"d":"R0.00"},{"v":0,"d":"R0.00"},{"v":0,"d":"R0.00"}]
["DEEP CLEANING(furn  and toilets)",{"v":0,"d":"R0.00"},{"v":0,"d":"R0.00"},{"v":0,"d":"R0.00"},{"v":0,"d":"R0.00"},{"v":0,"d":"R0.00"},null,null,"DEEP CLEANING(furn  and toilets)",{"v":0,"d":"R0.00"},{"v":0,"d":"R0.00"},{"v":0,"d":"R0.00"},{"v":0,"d":"R0.00"},{"v":0,"d":"R0.00"}]
[null,{"$f":"SUM(B4:B9)","v":{"v":0,"d":"R0.00"}},{"$f":"SUM(C4:C9)","v":{"v":0,"d":"R0.00"}},{"$f":"SUM(D4:D9)","v":{"v":0,"d":"R0.00"}},{"$f":"SUM(E4:E9)","v":{"v":0,"d":"R0.00"}},{"$f":"SUM(F4:F9)","v":{"v":0,"d":"R0.00"}},{"$nulls":3},{"$f":"SUM(J4:J9)","v":{"v":0,"d":"R0.00"}},{"$f":"SUM(K4:K9)","v":{"v":0,"d":"R0.00"}},{"$f":"SUM(L4:L9)","v":{"v":0,"d":"R0.00"}},{"$f":"SUM(M4:M9)","v":{"v":0,"d":"R0.00"}},{"$f":"SUM(N4:N9)","v":{"v":0,"d":"R0.00"}}]
[]
[]
[]
[{"$nulls":3},"ESKOM PARK"]
[null,"Year 1","Year 2","Year 3","Year 4","Year 5"]
["CLEANERS",{"v":0,"d":"R0.00"},{"$f":"B16+(B16*5%)","v":{"v":0,"d":"R0.00"}},{"$f":"C16+(C16*5%)","v":{"v":0,"d":"R0.00"}},{"$f":"D16+(D16*5%)","v":{"v":0,"d":"R0.00"}},{"$f":"E16+(E16*5%)","v":{"v":0,"d":"R0.00"}}]
["SUPERVISORS",{"v":0,"d":"R0.00"},{"$f":"B17+(B17*5%)","v":{"v":0,"d":"R0.00"}},{"v":0,"d":"R0.00"},{"$f":"D17+(D17*5%)","v":{"v":0,"d":"R0.00"}},{"v":0,"d":"R0.00"}]
["SAFETY OFFICER",{"v":0,"d":"R0.00"},{"v":0,"d":"R0.00"},{"v":0,"d":"R0.00"},{"v":0,"d":"R0.00"},{"v":0,"d":"R0.00"}]
["HYGENE CONSUMABLES(Equip & Chemicals)",{"v":0,"d":"R0.00"},{"v":0,"d":"R0.00"},{"v":0,"d":"R0.00"},{"v":0,"d":"R0.00"},{"v":0,"d":"R0.00"}]
["CLEANING CONSUMABLES",{"v":0,"d":"R0.00"},{"v":0,"d":"R0.00"},{"v":0,"d":"R0.00"},{"v":0,"d":"R0.00"},{"v":0,"d":"R0.00"}]
["DEEP CLEANING(furn  and toilets)",{"v":0,"d":"R0.00"},{"v":0,"d":"R0.00"},{"v":0,"d":"R0.00"},{"v":0,"d":"R0.00"},{"v":0,"d":"R0.00"}]
[null,{"$f":"SUM(B16:B21)","v":{"v":0,"d":"R0.00"}},{"$f":"SUM(C16:C21)","v":{"v":0,"d":"R0.00"}},{"$f":"SUM(D16:D21)","v":{"v":0,"d":"R0.00"}},{"$f":"SUM(E16:E21)","v":{"v":0,"d":"R0.00"}},{"$f":"SUM(F16:F21)","v":{"v":0,"d":"R0.00"}}]
[]
[]
[null,null,"Total"]

{"sheet":"CLEANERS","index":1,"n_rows":61,"n_cols":9,"rows_kept":61,"merged":[[5,0,5,2],[5,5,5,7],[35,0,35,2]]}
["Cleaners: Lowveld Zone",{"$nulls":4},"Cleaners: Highveld Zone"]
["Site Name","Cleaners",{"$nulls":3},"Site Name","Cleaners"]
["Lowveld Zone",48,{"$nulls":3},"Highveld Zone",42]
["TOTAL",{"$f":"SUM(B3:B3)","v":48},{"$nulls":3},"TOTAL",{"$f":"SUM(G3:G3)","v":42}]
[]
["COST PER CLEANER",{"$nulls":4},"COST PER CLEANER"]
["Item","Decription","Unit",null,null,"Item","Decription","Unit"]
[]
["Total cost:  labour per employee","Labour Costs (Cleaner)",48,null,null,"Total cost:  labour per employee","Labour Costs (Cleaner)",42]
[]
[1,"Basic Salary","Each","R",null,1,"Basic Salary","Each","R"]
[2,"UIF","Each","R",null,2,"UIF","Each","R"]
[3,"Provident fund","Each","R",null,3,"Provident fund","Each","R"]
[4,"COID","Each","R",null,4,"COID","Each","R"]
[5,"Uniform/PPE ","Each","R",null,5,"Uniform/PPE ","Each","R"]
[{"$nulls":3},"R",{"$nulls":4},"R"]
[]
[]
["Total cost: overheads",{"$nulls":4},"Total cost: overheads"]
[6,"Admin cost",null,"R",null,6,"Admin cost",null,"R"]
[7,"Cleaning Equipment (Refer to the technical evaluation list for tools )",null,{"$f":"D20","v":"R"},null,7,"Cleaning Equipment (Refer to the technical evaluation list for tools)",null,"R"]
[{"$nulls":8},"R"]
[]
["Tendered total cost per month per worker",null,null,"R",null,"Tendered total cost per month per worker",null,null,"R"]
["Corrected total cost per month per worker",null,null,"R",null,"Corrected total cost per month per worker",null,null,"R"]
["Total cost of labour @ 48 workers p/m",null,null,"R",null,"Total cost of labour @ 42  workers p/m",null,null,"R"]
["Total cost of labour @ 48 workers p/a",null,null,"R",null,"Total cost of labour @ 42 workers p/a",null,null,"R"]
["Total for 60 months labour ",null,null,"R",null,"Total for 60 months labour ",null,null,"R"]
[]
[]
["Cleaners: Eskom Park"]
["Site Name","Cleaners"]
[" Eskom Park",30]
["TOTAL",30]
[]
["COST PER CLEANER"]
["Item","Decription","Unit"]
[]
["Total cost:  labour per employee","Labour Costs (Cleaner)",30]
[]
[1,"Basic Salary","Each","R"]
[2,"UIF","Each","R"]
[3,"Provident fund","Each","R"]
[4,"COID","Each","R"]
[5,"Uniform/PPE ","Each","R"]
[{"$nulls":3},"R"]
[]
[]
[]
[]
["Total cost: overheads"]
[6,"Admin cost",null,"R"]
[7,"Cleaning Equipment (Refer to the technical evaluation list for tools)",null,"R"]
[]
[]
[]
["Tendered total cost per month per worker",null,null,"R"]
["Corrected total cost per month per worker",null,null,{"$f":"D57","v":"R"}]
["Total cost of labour @ 30  workers p/m",null,null,"R"]
["Total cost of labour @ 30 workers p/a",null,null,"R"]
["Total for 60 months labour ",null,null,"R"]

{"sheet":"SUPERVISORS","index":2,"n_rows":43,"n_cols":10,"rows_kept":43}
["Supervisor: Lowveld Zone",{"$nulls":5},"Supervisor: Highveld Zone"]
["Site Name","Supervisors",{"$nulls":4},"Site Name","Supervisors"]
["Lowveld Zone",1,{"$nulls":4},"Highveld Zone",1]
["TOTAL",1,{"$nulls":4},"TOTAL",1]
[]
[]
["Total cost:  labour per employee","Labour Costs (Supervisor)",1,{"$nulls":3},"Total cost:  labour per employee","Labour Costs (Supervisor)",1]
[]
[1,"Basic Salary","Item","R",null,null,1,"Basic Salary","Item","R"]
[2,"UIF","Item","R",null,null,2,"UIF","Item","R"]
[3,"Provident fund","Item","R",null,null,3,"Provident fund","Item","R"]
[4,"COID","Item","R",null,null,4,"COID","Item","R"]
[5,"Uniform/PPE","Item","R",null,null,5,"Uniform/PPE","Item","R"]
[{"$nulls":3},"R",{"$nulls":5},"R"]
[]
["Total cost: overheads",{"$nulls":5},"Total cost: overheads"]
[6,"Admin cost",null,"R",null,null,6,"Admin cost",null,"R"]
[]
["Tendered Total cost per month per worker",null,null,"R",null,null,"Tendered Total cost per month per worker",null,null,"R"]
["Total cost of labour @ 1  workers p/m",null,null,"R",null,null,"Total cost of labour @ 1 workers p/m",null,null,"R"]
["Total cost of labour @ 1 workers p/a",null,null,"R",null,null,"Total cost of labour @ 1 workers p/a",null,null,"R"]
[]
[]
[]
["Supervisor: Eskom Park"]
["Site Name","Supervisors"]
["Eskom Park",1]
["TOTAL",1]
["Total cost:  labour per employee","Labour Costs (Supervisor)",1]
[]
[1,"Basic Salary","Each","R"]
[2,"UIF","Each","R"]
[3,"Provident fund","Each","R"]
[4,"COID","Each","R"]
[5,"Uniform/PPE","Each","R"]
[]
[]
["Total cost: overheads"]
[6,"Admin cost",null,"R"]
[]
["Tendered Total cost per month per worker",null,null,"R"]
["Total cost of labour @ 1  workers p/m",null,null,"R"]
["Total cost of labour @1 workers p/a",null,null,"R"]

{"sheet":"SAFETY OFFICER","index":3,"n_rows":42,"n_cols":9,"rows_kept":42,"merged":[[0,0,0,2],[0,5,0,7],[1,0,1,2],[1,5,1,7],[22,0,22,2],[23,0,23,2]]}
["COST PER SAFETY OFFICER",{"$nulls":4},"COST PER SAFETY OFFICER"]
["Zone Name: Lowveld Zone",{"$nulls":4},"Zone Name: Highveld Zone"]
[]
["Item","Description","Unit",null,null,"Item","Description","Unit"]
[]
["Total cost:  labour per employee","Labour Costs (Safety officer)",1,null,null,"Total cost:  labour per employee","Labour Costs (Safety officer)",1]
[]
[1,"Basic Salary","Each","R",null,1,"Basic Salary","Each","R"]
[2,"UIF","Each","R",null,2,"UIF","Each","R"]
[3,"Provident fund","Each","R",null,3,"Provident fund","Each","R"]
[4,"COID","Each","R",null,4,"COID","Each","R"]
[5,"Uniform/PPE","Each","R",null,5,"Uniform/PPE","Each","R"]
[{"$nulls":3},"R",{"$nulls":4},"R"]
[]
["Total cost: overheads",{"$nulls":4},"Total cost: overheads"]
[6,"Admin cost",null,"R",null,6,"Admin cost",null,"R"]
[]
["Tendered Total cost per month per worker",null,null,"R",null,"Tendered Total cost per month per worker",null,null,"R"]
["Total cost of labour @ 1  workers p/m",null,null,"R",null,"Total cost of labour @ 1  workers p/m",null,null,"R"]
["Total cost of labour @ 1 workers p/a",null,null,"R",null,"Total cost of labour @ 1 workers p/a",null,null,"R"]
[]
[]
["COST PER SAFETY OFFICER"]
["Zone Name:Eskom Park"]
[]
["Item","Description","Unit"]
[]
["Total cost:  labour per employee","Labour Costs (Safety officer)",1]
[]
[1,"Basic Salary","Each","R"]
[2,"UIF","Each","R"]
[3,"Provident fund","Each","R"]
[4,"COID","Each","R"]
[5,"Uniform/PPE","Each","R"]
[]
[]
["Total cost: overheads"]
[6,"Admin cost",null,"R"]
[]
["Tendered Total cost per month per worker",null,null,"R"]
["Total cost of labour @ 1  workers p/m",null,null,"R"]
["Total cost of labour @ 1 workers p/a",null,null,"R"]

{"sheet":"HYGIENE CONSUMABLES","index":4,"n_rows":69,"n_cols":12,"rows_kept":69,"merged":[[1,1,1,2],[1,7,1,8],[2,1,2,2],[2,7,2,8],[18,1,18,2],[19,1,19,2],[36,1,36,2],[36,7,36,8],[37,1,37,2],[37,7,37,8],[53,1,53,2],[54,1,54,2]]}
[]
[null,"LIST OF HYGIENE EQUIPMENT ",{"$nulls":5},"LIST OF HYGIENE EQUIPMENT "]
[null,"Zone Name :Lowveld Zone ",{"$nulls":5},"Zone Name :Highveld Zone "]
[null,"Once off Installation",{"$nulls":5},"Once off Installation"]
["Item","Description","Quantity","RENTALS","Total",null,"Item","Description","Quantity","RENTALS","Total"]
[null,"LIST OF CLEANING EQUIPMENT",{"$nulls":5},"LIST OF CLEANING EQUIPMENT"]
[1,"Paper towel  dispenser",217,"R","R",null,1,"Paper towel  dispenser",242,"R","R"]
[2,"Paper towel wall bin",216,"R","R",null,2,"Paper towel wall bin",233,"R","R"]
[3,"TR3 Toilet Roll Holder",244,"R","R",null,3,"TR3 Toilet Roll Holder",275,"R","R"]
[4," Soap Dispenser",176,"R","R",null,4," Soap Dispenser",135,"R","R"]
[5,"SHE Bins (Weekly) Removal",122,"R","R",null,5,"SHE Bins (Weekly) Removal",110,"R","R"]
[6,"Seat sanitizer Dispenser",244,"R","R",null,6,"Seat sanitizer Dispenser",275,"R","R"]
[7,"SHE packet dispenser",124,"R","R",null,7,"SHE packet dispenser",110,"R","R"]
[8,"Aerosol spray Dispenser (Antitheft Bracket)",218,"R","R",null,8,"Aerosol spray Dispenser (Antitheft Bracket)",188,"R","R"]
[9,"Urinal Drip Dispenser",357,"R","R",null,9,"Urinal Drip Dispenser",391,"R","R"]
[10,"Hand sanitizer Dispenser",154,"R","R",null,10,"Hand sanitizer Dispenser",142,"R","R"]
["Total cost :once off purchase",{"$nulls":3},{"$f":"SUM(E7:E16)","v":{"v":0,"d":"R 0.00"}},null,"Total cost :once off purchase",null,null,"R","R"]
[]
[null,"LIST OF HYGIENE EQUIPMENT "]
[null,"Zone Name:Eskom Park"]
[null,"Once off Installation"]
["Item","Description","Quantity","RENTALS","Total"]
[null,"LIST OF CLEANING EQUIPMENT"]
[1,"Paper towel  dispenser",280,"R","R"]
[2,"Paper towel wall bin",266,"R","R"]
[3,"TR3 Toilet Roll Holder",300,"R","R"]
[4," Soap Dispenser",150,"R","R"]
[5,"SHE Bins (Weekly) Removal",184,"R","R"]
[6,"Seat sanitizer Dispenser",300,"R","R"]
[7,"SHE packet dispenser",184,"R","R"]
[8,"Aerosol spray Dispenser (Antitheft Bracket)",300,"R","R"]
[9,"Urinal Drip Dispenser",500,"R","R"]
[10,"Hand sanitizer Dispenser",231,"R","R"]
["Total cost :once off purchase",null,null,"R","R"]
[]
[]
[null,"LIST OF HYGIENE CONSUMABLES PRODUCTS",{"$nulls":5},"LIST OF HYGIENE CONSUMABLES PRODUCTS"]
[null,"Zone Name:Eskom Park",{"$nulls":5},"Zone Name:Highveld Zone"]
[null,"Every month",{"$nulls":5},"Every month"]
["Item","Description","Quantity","Rate","Total",null,"Item","Description","Quantity","Unit","Rate","Total"]
[null,"LIST OF CLEANING CONSUMABLES",{"$nulls":5},"LIST OF CLEANING CONSUMABLES"]
[1,"Paper towel  150mm x 1500m",280,"R","R",null,1,"Paper towel  150mm x 1500m",280,null,"R","R"]
[3,"2 Ply Toilet Paper (48 Pack) 350 Sheets",200,"R","R",null,3,"2 Ply Toilet Paper (48 Pack) 350 Sheets",150,null,"R","R"]
[4," Hand Soap 1l",100,"R","R",null,4," Hand Soap 1l",70,null,"R","R"]
[5,"SHE Bins (Weekly Removal)",184,"R","R",null,5,"SHE Bins (Weekly Removal)",184,null,"R","R"]
[6,"Seat sanitizer 1l",150,"R","R",null,6,"Seat sanitizer 1l",150,null,"R","R"]
[7,"SHE packet (50 per pack)",50,"R","R",null,7,"SHE packet (50 per pack)",50,null,"R","R"]
[8,"Aerosol spray 250ml",300,"R","R",null,8,"Aerosol spray 250ml",300,null,"R","R"]
[9,"Urinal Drip (300 to 500ml)",500,"R","R",null,9,"Urinal Drip (300 to 500ml)",500,null,"R","R"]
[10,"Hand sanitizer 1l",100,"R","R",null,10,"Hand sanitizer 1l",100,null,"R","R"]
["Total cost for every month",null,null,"R","R",null,"Total cost for every month",{"$nulls":3},"R","R"]
[]
[]
[null,"LIST OF HYGIENE CONSUMABLES PRODUCTS"]
[null,"Zone Name: Lowveld Zone"]
[]
[null,"Every month"]
["Item","Description","Quantity","Rate","Total"]
[null,"LIST OF CLEANING CONSUMABLES"]
[1,"Paper towel  150mm x 1500m",280,"R","R"]
[3,"2 Ply Toilet Paper (48 Pack) 350 Sheets",150,"R","R"]
[4," Hand Soap 1l",70,"R","R"]
[5,"SHE Bins (Weekly Removal)",184,"R","R"]
[6,"Seat sanitizer 1l",150,"R","R"]
[7,"SHE packet (50 per pack)",50,"R","R"]
[8,"Aerosol spray 250ml",300,"R","R"]
[9,"Urinal Drip (300 to 500ml)",500,"R","R"]
[10,"Hand sanitizer 1l",100,"R","R"]
["Total cost for every month",null,null,"R","R"]

{"sheet":"CLEANING CHEMICALS","index":5,"n_rows":35,"n_cols":11,"rows_kept":35,"merged":[[1,1,1,2],[1,7,1,8],[19,1,19,2]]}
[]
[null,"Zone Name :Lowveld Zone",{"$nulls":5},"Zone Name :Highveld Zone"]
[null," Every month",{"$nulls":5}," Every month"]
["Item","Description","Quantity",null,"Total",null,"Item","Description","Quantity",null,"Total"]
[null,"LIST OF CLEANING CONSUMABLES",{"$nulls":5},"LIST OF CLEANING CONSUMABLES"]
[1,"Dishwashing liquid soap 25l",30,"R","R",null,1,"Dishwashing liquid soap 25l",30,"R","R"]
[2,"Bleach 25l",25,"R","R",null,2,"Bleach 25l",25,"R","R"]
[3,"Pine gel 25l",25,"R","R",null,3,"Pine gel 25l",25,"R","R"]
[4,"furniture Polish cans 750ml",55,"R","R",null,4,"furniture Polish cans 750ml",46,"R","R"]
[5,"Multi Purpose Cleaner 25l",25,"R","R",null,5,"Multi Purpose Cleaner 25l",25,"R","R"]
[6,"Toilet Bowl Cleaner 5x5",25,"R","R",null,6,"Toilet Bowl Cleaner 5x5",25,"R","R"]
[7,"Deodorant Block 5KG",5,"R","R",null,7,"Deodorant Block 5KG",5,"R","R"]
[8,"Stripping Chemical 25l",1,"R","R",null,8,"Stripping Chemical 25l",1,"R","R"]
[9,"Pee Mats each",120,"R","R",null,9,"Pee Mats each",120,"R","R"]
[10,"Refuse bags 40s per pack",45,{"$nulls":3},10,"Refuse bags 40s per pack",35]
["Total cost for every months",null,null,"R","R",null,"Total cost for every months",null,null,"R","R"]
["Total cost for 12 months",null,null,"R","R",null,"Total cost for 12 months",null,null,"R","R"]
[]
[]
[null,"Zone Name :Eskom Park"]
[null," Every month"]
["Item","Description","Quantity",null,"Total"]
[null,"LIST OF CLEANING CONSUMABLES"]
[1,"Dishwashing liquid soap 25l",5,"R","R"]
[2,"Bleach 25l",5,"R","R"]
[3,"Pine gel 25l",5,"R","R"]
[4,"furniture Polish cans 750ml",40,"R","R"]
[5,"Multi Purpose Cleaner 25l",5,"R","R"]
[6,"Toilet Bowl Cleaner 5x5",5,"R","R"]
[7,"Deodorant Block 5KG",2,"R","R"]
[8,"Stripping Chemical 25l",1,"R","R"]
[9,"Pee Mats each",120,"R","R"]
[10,"Refuse bags 40s per pack",7,"R","R"]
["Total cost for every months",null,null,"R","R"]
["Total cost for 12 months"]

{"sheet":"DEEP CLEANING","index":6,"n_rows":62,"n_cols":10,"rows_kept":62,"merged":[[1,0,1,1],[15,0,15,1],[28,0,28,1]]}
["HIGH LEVEL CLEANING:  (Upon instruction from Contracts manager/ Supervisor)","As and when required"]
["Zone Name :Lowveld Zone"]
["Description","Unit","Quantities","Service intervals ","5 YEAR CONTRACT","Price","Total"]
[]
["Windows (external)","m²",820,1,5,"R","R"]
["Chairs","ea",1800,1,5,"R","R"]
["Sofa","ea",5,1,5,"R","R"]
["Office Screens","ea",10,1,5,"R","R"]
["Carpert Steam Cleaning","m²",4000,1,5,"R","R"]
["Curtain Steam Cleaning","ea",50,1,5,"R","R"]
["Steam cleaning of blinds","ea",50,1,5,"R","R"]
["Total a year",{"$nulls":4},"R","R"]
[]
[]
["HIGH LEVEL CLEANING:  (Upon instruction from Contracts manager/ Supervisor)","As and when required"]
["Zone Name :Highveld Zone"]
["Description","Unit","Quantities","Service intervals ","5 YEAR CONTRACT","Price","Total"]
[]
["Windows (external)","m²",820,1,5,"R","R"]
["Chairs","ea",1800,1,5,"R","R"]
["Sofa","ea",6,1,5,"R","R"]
["Office Screens","ea",83,1,5,"R","R"]
["Carpert Steam Cleaning","m²",4000,1,5,"R","R"]
["Curtain Steam Cleaning","ea",50,1,5,"R","R"]
["Steam cleaning of blinds","ea",50,1,5,"R","R"]
["Total a year",{"$nulls":4},"R","R"]
[]
["HIGH LEVEL CLEANING:  (Upon instruction from Contracts manager/ Supervisor)","As and when required"]
["Zone Name :Eskom Park"]
["Description","Unit","Quantities","Service intervals ","5 YEAR CONTRACT","Price","Total"]
[]
["Windows (external)","m²",1500,1,5,"R","R"]
["Chairs","ea",2500,1,5,"R","R"]
["Sofa","ea",50,1,5,"R","R"]
["Office Screens","ea",20,1,5,"R","R"]
["Carpert Steam Cleaning","m²",7000,1,5,"R","R"]
["Curtain Steam Cleaning","ea",70,1,5,"R","R",null,null,0]
["Steam cleaning of blinds","ea",70,1,5,"R","R"]
["Total a year",{"$nulls":4},"R","R"]
[]
[]
["HIGH LEVEL CLEANING TOILETS AND KITCHENS:  (Upon instruction from Contracts manager/ Supervisor)"]
[]
["Lowveld "]
["Item",null,"Quantities ","Service Intervals","Rate","Total"]
["Deep cleaning of toilets and urinals ",null,{"$f":"357+196","v":553},1,"R","R"]
["Cleaning of basins in kitchens and bathrooms",null,{"$f":"54+165","v":219},1,"R","R"]
["Total a year",{"$nulls":3},"R","R"]
[]
[]
["Highveld "]
["Item",null,"Quantities ","Service Intervals","Rate","Total"]
["Deep cleaning of toilets and urinals ",null,{"$f":"169+391","v":560},1,"R","R"]
["Cleaning of basins in kitchens and bathrooms",null,{"$f":"55+153","v":208},1,"R","R"]
["Total a year",{"$nulls":3},"R","R"]
[]
[]
["Eskom Park"]
["Item",null,"Quantities ","Service Intervals","Rate","Total"]
["Deep cleaning of toilets and urinals ",null,{"$f":"298+578","v":876},1,"R","R"]
["Cleaning of basins in kitchens and bathrooms",null,{"$f":"80+290","v":370},1,"R","R"]
["Total a year",{"$nulls":3},"R","R"]